[Event "Late-Titled-Tuesday-Blitz-January-30-2024"]
[Site "Chess.com"]
[Date "2024.01.30"]
[Round "6"]
[White "tptagain"]
[Black "AradNazari"]
[Result "1-0"]
[WhiteElo "2913"]
[BlackElo "2709"]
[TimeControl "180+1"]
[EndTime "15:06:55 PST"]
[Termination "tptagain won on time"]

1. e4 {[%clk 0:03:00.9]} 1... c5 {[%clk 0:02:58.4]} 2. Nf3 {[%clk 0:03:01]} 2...
d6 {[%clk 0:02:58.6]} 3. c3 {[%clk 0:03:00.7]} 3... Nf6 {[%clk 0:02:57.5]} 4.
Be2 {[%clk 0:03:00.8]} 4... g6 {[%clk 0:02:51.4]} 5. O-O {[%clk 0:02:59.7]} 5...
Bg7 {[%clk 0:02:51.9]} 6. Bb5+ {[%clk 0:02:57.1]} 6... Bd7 {[%clk 0:02:50]} 7.
Bxd7+ {[%clk 0:02:56.7]} 7... Nbxd7 {[%clk 0:02:50.9]} 8. Qe2 {[%clk 0:02:54]}
8... O-O {[%clk 0:02:48.4]} 9. d4 {[%clk 0:02:54.1]} 9... e5 {[%clk 0:02:45.5]}
10. dxe5 {[%clk 0:02:39.8]} 10... dxe5 {[%clk 0:02:44.3]} 11. Rd1 {[%clk
0:02:32.6]} 11... Qc7 {[%clk 0:02:44.2]} 12. c4 {[%clk 0:02:32.9]} 12... Nb8
{[%clk 0:02:09]} 13. Bg5 {[%clk 0:02:33]} 13... Nh5 {[%clk 0:01:55.2]} 14. Nc3
{[%clk 0:02:27.4]} 14... Nc6 {[%clk 0:01:55.4]} 15. Nd5 {[%clk 0:02:25.5]} 15...
Qc8 {[%clk 0:01:54.7]} 16. Be7 {[%clk 0:01:46.8]} 16... Re8 {[%clk 0:01:53.1]}
17. Bxc5 {[%clk 0:01:46.4]} 17... Nf4 {[%clk 0:01:32]} 18. Nxf4 {[%clk
0:01:43.8]} 18... exf4 {[%clk 0:01:32.1]} 19. Rac1 {[%clk 0:01:35.9]} 19... f5
{[%clk 0:01:21.4]} 20. e5 {[%clk 0:01:19.8]} 20... Nxe5 {[%clk 0:01:13.6]} 21.
Bd6 {[%clk 0:01:05.7]} 21... Nxf3+ {[%clk 0:00:49.4]} 22. Qxf3 {[%clk
0:01:06.6]} 22... Re4 {[%clk 0:00:49.8]} 23. c5 {[%clk 0:01:04.5]} 23... Bxb2
{[%clk 0:00:46.7]} 24. Qb3+ {[%clk 0:01:04.3]} 24... Qe6 {[%clk 0:00:43.8]} 25.
Qxb2 {[%clk 0:01:04.3]} 25... Re8 {[%clk 0:00:44.4]} 26. Qb3 {[%clk 0:00:59.5]}
26... Re2 {[%clk 0:00:33.5]} 27. Bxf4 {[%clk 0:00:52.9]} 27... Rxa2 {[%clk
0:00:32.2]} 28. Qxe6+ {[%clk 0:00:52.6]} 28... Rxe6 {[%clk 0:00:33.1]} 29. Rd7
{[%clk 0:00:47.5]} 29... Rb2 {[%clk 0:00:33.1]} 30. Bh6 {[%clk 0:00:42.6]} 30...
Re8 {[%clk 0:00:26]} 31. h4 {[%clk 0:00:40]} 31... a5 {[%clk 0:00:23.7]} 32.
Rcd1 {[%clk 0:00:35.9]} 32... Rb4 {[%clk 0:00:11.8]} 33. g3 {[%clk 0:00:31]} 1-0

[Event "Late-Titled-Tuesday-Blitz-January-30-2024"]
[Site "Chess.com"]
[Date "2024.01.30"]
[Round "6"]
[White "SpeedofLight0"]
[Black "DefiantChair"]
[Result "1-0"]
[WhiteElo "3021"]
[BlackElo "2632"]
[TimeControl "180+1"]
[EndTime "15:06:58 PST"]
[Termination "SpeedofLight0 won by checkmate"]

1. d4 {[%clk 0:03:00.9]} 1... Nf6 {[%clk 0:02:58.7]} 2. Nc3 {[%clk 0:03:00.4]}
2... d5 {[%clk 0:02:57.9]} 3. Bf4 {[%clk 0:03:00.9]} 3... c5 {[%clk 0:02:55.2]}
4. e3 {[%clk 0:03:00.7]} 4... cxd4 {[%clk 0:02:54.3]} 5. exd4 {[%clk 0:03:01.6]}
5... a6 {[%clk 0:02:54.4]} 6. Nf3 {[%clk 0:03:02.1]} 6... Nc6 {[%clk 0:02:51.8]}
7. Be2 {[%clk 0:02:51.1]} 7... Bg4 {[%clk 0:02:50.4]} 8. O-O {[%clk 0:02:47.4]}
8... Bxf3 {[%clk 0:02:44.6]} 9. Bxf3 {[%clk 0:02:48.3]} 9... e6 {[%clk 0:02:45]}
10. Ne2 {[%clk 0:02:41.6]} 10... Bd6 {[%clk 0:02:42.2]} 11. c3 {[%clk
0:02:41.6]} 11... O-O {[%clk 0:02:41.3]} 12. Re1 {[%clk 0:02:39.8]} 12... b5
{[%clk 0:02:41.3]} 13. Rc1 {[%clk 0:02:38.5]} 13... Rb8 {[%clk 0:02:40.4]} 14.
h4 {[%clk 0:02:36.1]} 14... h6 {[%clk 0:02:30]} 15. Qd2 {[%clk 0:02:34.5]} 15...
Bxf4 {[%clk 0:02:23.4]} 16. Nxf4 {[%clk 0:02:35.4]} 16... Ne8 {[%clk 0:02:05.3]}
17. g3 {[%clk 0:02:27.9]} 17... Nd6 {[%clk 0:02:05.2]} 18. Nd3 {[%clk
0:02:28.1]} 18... a5 {[%clk 0:01:57.7]} 19. Kg2 {[%clk 0:02:06]} 19... b4 {[%clk
0:01:57.9]} 20. Qf4 {[%clk 0:01:54.3]} 20... bxc3 {[%clk 0:01:49.9]} 21. Rxc3
{[%clk 0:01:55.2]} 21... Nb4 {[%clk 0:01:47.4]} 22. Ne5 {[%clk 0:01:43.3]} 22...
Nxa2 {[%clk 0:01:14.3]} 23. Nc6 {[%clk 0:01:41.7]} 23... Qc7 {[%clk 0:01:11.6]}
24. Rc5 {[%clk 0:01:08.4]} 24... Rb5 {[%clk 0:00:52.1]} 25. Bxd5 {[%clk
0:00:42.3]} 25... Nb4 {[%clk 0:00:26.8]} 26. Nxb4 {[%clk 0:00:28.4]} 26... Rxc5
{[%clk 0:00:25.3]} 27. Na6 {[%clk 0:00:23.4]} 27... Qb6 {[%clk 0:00:20.5]} 28.
dxc5 {[%clk 0:00:16.4]} 28... Qxa6 {[%clk 0:00:20.8]} 29. Qxd6 {[%clk
0:00:16.7]} 29... Qb5 {[%clk 0:00:17.8]} 30. Be4 {[%clk 0:00:13.4]} 30... Qb4
{[%clk 0:00:18.1]} 31. Re3 {[%clk 0:00:12.5]} 31... Kh8 {[%clk 0:00:17.2]} 32.
Qxf8# {[%clk 0:00:12.5]} 1-0

[Event "Late-Titled-Tuesday-Blitz-January-30-2024"]
[Site "Chess.com"]
[Date "2024.01.30"]
[Round "6"]
[White "Sebastian"]
[Black "AlexeiShirov"]
[Result "1-0"]
[WhiteElo "2956"]
[BlackElo "2773"]
[TimeControl "180+1"]
[EndTime "15:07:03 PST"]
[Termination "Sebastian won by resignation"]

1. e4 {[%clk 0:03:00.9]} 1... e5 {[%clk 0:02:59.2]} 2. Nf3 {[%clk 0:03:01.2]}
2... Nc6 {[%clk 0:02:59.3]} 3. Bb5 {[%clk 0:03:01.8]} 3... a6 {[%clk 0:02:59.4]}
4. Ba4 {[%clk 0:03:02.5]} 4... Nf6 {[%clk 0:02:58.9]} 5. O-O {[%clk 0:03:03.1]}
5... b5 {[%clk 0:02:58.7]} 6. Bb3 {[%clk 0:03:03.8]} 6... Bc5 {[%clk 0:02:58.7]}
7. c3 {[%clk 0:03:04.2]} 7... d6 {[%clk 0:02:58.3]} 8. d4 {[%clk 0:03:04.9]}
8... Bb6 {[%clk 0:02:58.3]} 9. Re1 {[%clk 0:03:05.5]} 9... Bg4 {[%clk
0:02:47.5]} 10. Bg5 {[%clk 0:03:05.1]} 10... Rb8 {[%clk 0:02:42.8]} 11. Nbd2
{[%clk 0:02:58.1]} 11... O-O {[%clk 0:02:30.1]} 12. h3 {[%clk 0:02:52.1]} 12...
Bh5 {[%clk 0:02:29.2]} 13. g4 {[%clk 0:02:37.7]} 13... Bg6 {[%clk 0:02:28]} 14.
Nf1 {[%clk 0:02:37.7]} 14... h6 {[%clk 0:02:25]} 15. Bh4 {[%clk 0:02:37.1]}
15... Re8 {[%clk 0:02:00.2]} 16. Ng3 {[%clk 0:02:29.2]} 16... Na5 {[%clk
0:01:54.6]} 17. dxe5 {[%clk 0:01:56.6]} 17... dxe5 {[%clk 0:01:48.6]} 18. Qxd8
{[%clk 0:01:56.5]} 18... Rbxd8 {[%clk 0:01:47.5]} 19. Bxf6 {[%clk 0:01:57.1]}
19... gxf6 {[%clk 0:01:41.6]} 20. Red1 {[%clk 0:01:57]} 20... c6 {[%clk
0:01:29.8]} 21. Kg2 {[%clk 0:01:54.3]} 21... Nxb3 {[%clk 0:01:12.5]} 22. axb3
{[%clk 0:01:53.7]} 22... a5 {[%clk 0:01:12.7]} 23. Nh4 {[%clk 0:01:34.9]} 23...
Rxd1 {[%clk 0:00:57.6]} 24. Rxd1 {[%clk 0:01:34.1]} 24... Rd8 {[%clk 0:00:56.1]}
25. Rxd8+ {[%clk 0:01:30.4]} 25... Bxd8 {[%clk 0:00:55.1]} 26. Nhf5 {[%clk
0:01:10.2]} 26... Kh7 {[%clk 0:00:42.7]} 27. h4 {[%clk 0:01:06.3]} 27... a4
{[%clk 0:00:34.2]} 28. bxa4 {[%clk 0:00:44.2]} 28... bxa4 {[%clk 0:00:33]} 29.
Kf3 {[%clk 0:00:44]} 29... Ba5 {[%clk 0:00:31.6]} 30. Ke2 {[%clk 0:00:43.9]}
30... Bb6 {[%clk 0:00:24.3]} 31. f3 {[%clk 0:00:38.6]} 31... Bc5 {[%clk
0:00:20.3]} 32. h5 {[%clk 0:00:37.1]} 32... Bxf5 {[%clk 0:00:19.4]} 33. Nxf5
{[%clk 0:00:38]} 33... a3 {[%clk 0:00:17.8]} 34. bxa3 {[%clk 0:00:38.2]} 34...
Bxa3 {[%clk 0:00:17.6]} 35. Kd3 {[%clk 0:00:38.9]} 35... Bf8 {[%clk 0:00:16.2]}
36. Kc4 {[%clk 0:00:37.5]} 36... Kg8 {[%clk 0:00:14.9]} 37. Kb3 {[%clk
0:00:37.3]} 37... Kh7 {[%clk 0:00:14.4]} 38. Ka4 {[%clk 0:00:37.3]} 38... Bc5
{[%clk 0:00:14.1]} 39. Ka5 {[%clk 0:00:36.8]} 39... Bf2 {[%clk 0:00:13.9]} 40.
Ka6 {[%clk 0:00:36.5]} 40... Be1 {[%clk 0:00:13.4]} 41. c4 {[%clk 0:00:36.5]}
1-0

[Event "Late-Titled-Tuesday-Blitz-January-30-2024"]
[Site "Chess.com"]
[Date "2024.01.30"]
[Round "6"]
[White "Witik"]
[Black "Fernando_Offermann"]
[Result "1-0"]
[WhiteElo "2659"]
[BlackElo "2430"]
[TimeControl "180+1"]
[EndTime "15:07:03 PST"]
[Termination "Witik won by resignation"]

1. d4 {[%clk 0:02:57.4]} 1... Nf6 {[%clk 0:02:59.6]} 2. c4 {[%clk 0:02:57.6]}
2... g6 {[%clk 0:02:59.8]} 3. g3 {[%clk 0:02:57.9]} 3... Bg7 {[%clk 0:03:00.2]}
4. Bg2 {[%clk 0:02:58.4]} 4... O-O {[%clk 0:03:00.6]} 5. Nc3 {[%clk 0:02:58.9]}
5... d6 {[%clk 0:03:01]} 6. Nf3 {[%clk 0:02:59.3]} 6... Nbd7 {[%clk 0:03:01.2]}
7. O-O {[%clk 0:02:59.6]} 7... e5 {[%clk 0:03:01.5]} 8. e4 {[%clk 0:03:00.2]}
8... c6 {[%clk 0:03:00.1]} 9. h3 {[%clk 0:03:00.5]} 9... a5 {[%clk 0:03:00.4]}
10. Be3 {[%clk 0:02:51.2]} 10... a4 {[%clk 0:02:59.9]} 11. Qc2 {[%clk
0:02:48.3]} 11... Qa5 {[%clk 0:02:59.2]} 12. Rfd1 {[%clk 0:02:39]} 12... Re8
{[%clk 0:02:58.7]} 13. d5 {[%clk 0:02:27]} 13... Bf8 {[%clk 0:02:42.1]} 14. Ne1
{[%clk 0:02:10.4]} 14... Nc5 {[%clk 0:02:41.2]} 15. Nd3 {[%clk 0:01:52.3]} 15...
Nxd3 {[%clk 0:02:31.6]} 16. Rxd3 {[%clk 0:01:39.5]} 16... Nd7 {[%clk 0:02:30.9]}
17. Rad1 {[%clk 0:01:28.3]} 17... Nc5 {[%clk 0:02:29.8]} 18. R3d2 {[%clk
0:01:28.8]} 18... f5 {[%clk 0:02:25]} 19. dxc6 {[%clk 0:01:07.6]} 19... bxc6
{[%clk 0:02:24.6]} 20. exf5 {[%clk 0:00:59]} 20... Bxf5 {[%clk 0:02:23.9]} 21.
Qc1 {[%clk 0:00:59.7]} 21... Rac8 {[%clk 0:01:50]} 22. g4 {[%clk 0:00:54.2]}
22... Be6 {[%clk 0:01:49.7]} 23. Bxc5 {[%clk 0:00:53]} 23... Qxc5 {[%clk
0:01:48.7]} 24. Ne4 {[%clk 0:00:50.3]} 24... Qxc4 {[%clk 0:01:47.2]} 25. Nf6+
{[%clk 0:00:44]} 25... Kf7 {[%clk 0:01:46.6]} 26. Nxe8 {[%clk 0:00:42.1]} 26...
Kxe8 {[%clk 0:01:42.3]} 27. Rc2 {[%clk 0:00:28.7]} 27... Qxa2 {[%clk 0:01:33.5]}
28. Rxc6 {[%clk 0:00:28.9]} 28... Rd8 {[%clk 0:01:30]} 29. Rc7 {[%clk
0:00:24.9]} 29... d5 {[%clk 0:01:12.9]} 30. Qc6+ {[%clk 0:00:18.7]} 30... Bd7
{[%clk 0:01:09.1]} 31. Rxd7 {[%clk 0:00:14.9]} 31... Rxd7 {[%clk 0:01:04.4]} 32.
Rxd5 {[%clk 0:00:15.4]} 32... Qxd5 {[%clk 0:00:41.2]} 33. Bxd5 {[%clk
0:00:15.1]} 33... Kd8 {[%clk 0:00:41.6]} 34. Qb6+ {[%clk 0:00:09.9]} 34... Ke7
{[%clk 0:00:41]} 35. Qe6+ {[%clk 0:00:09.6]} 35... Kd8 {[%clk 0:00:41]} 36. Qf6+
{[%clk 0:00:08.3]} 36... Be7 {[%clk 0:00:38.6]} 37. Qb6+ {[%clk 0:00:08.5]}
37... Kc8 {[%clk 0:00:37.1]} 38. Be6 {[%clk 0:00:08.5]} 1-0

[Event "Late-Titled-Tuesday-Blitz-January-30-2024"]
[Site "Chess.com"]
[Date "2024.01.30"]
[Round "6"]
[White "annacramling"]
[Black "DeArron_Fox"]
[Result "0-1"]
[WhiteElo "2118"]
[BlackElo "2490"]
[TimeControl "180+1"]
[EndTime "15:07:03 PST"]
[Termination "DeArron_Fox won on time"]

1. e3 {[%clk 0:03:00.9]} 1... d5 {[%clk 0:02:59.7]} 2. d3 {[%clk 0:03:01.5]}
2... e5 {[%clk 0:02:58.4]} 3. Ne2 {[%clk 0:03:02.2]} 3... Nf6 {[%clk 0:02:58]}
4. Ng3 {[%clk 0:03:02.8]} 4... h5 {[%clk 0:02:58.1]} 5. h4 {[%clk 0:03:02.6]}
5... Bg4 {[%clk 0:02:55.6]} 6. Be2 {[%clk 0:03:02.5]} 6... Bd6 {[%clk 0:02:55]}
7. Nd2 {[%clk 0:02:54.1]} 7... Nbd7 {[%clk 0:02:49.2]} 8. e4 {[%clk 0:02:52.6]}
8... c6 {[%clk 0:02:44.6]} 9. c3 {[%clk 0:02:46.8]} 9... Nc5 {[%clk 0:02:24.2]}
10. Nb3 {[%clk 0:02:12.1]} 10... Nxb3 {[%clk 0:01:59.3]} 11. axb3 {[%clk
0:02:07.8]} 11... Bc5 {[%clk 0:01:56]} 12. d4 {[%clk 0:01:50.9]} 12... exd4
{[%clk 0:01:19]} 13. e5 {[%clk 0:01:50.2]} 13... Ne4 {[%clk 0:01:06.5]} 14. Nxe4
{[%clk 0:01:35.1]} 14... dxe4 {[%clk 0:01:01.9]} 15. Bxg4 {[%clk 0:01:35.1]}
15... hxg4 {[%clk 0:01:00.5]} 16. Qxg4 {[%clk 0:01:36]} 16... Qd7 {[%clk
0:00:29.5]} 17. Qxe4 {[%clk 0:01:18.2]} 17... O-O-O {[%clk 0:00:17]} 18. Bd2
{[%clk 0:00:21.5]} 18... f5 {[%clk 0:00:09.6]} 19. Qf4 {[%clk 0:00:16.7]} 19...
dxc3 {[%clk 0:00:06.5]} 20. Bxc3 {[%clk 0:00:16.8]} 20... Qd3 {[%clk 0:00:07]}
21. b4 {[%clk 0:00:10.8]} 21... Bb6 {[%clk 0:00:06.8]} 22. Qg3 {[%clk 0:00:06]}
22... Qe4+ {[%clk 0:00:04.9]} 23. Kf1 {[%clk 0:00:05.3]} 23... Rd3 {[%clk
0:00:03.9]} 24. Qxg7 {[%clk 0:00:02.8]} 24... Rhd8 {[%clk 0:00:04.4]} 25. Re1
{[%clk 0:00:01.9]} 25... Rd1 {[%clk 0:00:03.4]} 0-1

[Event "Late-Titled-Tuesday-Blitz-January-30-2024"]
[Site "Chess.com"]
[Date "2024.01.30"]
[Round "6"]
[White "vladoboch"]
[Black "IlanSchnaider"]
[Result "0-1"]
[WhiteElo "2480"]
[BlackElo "2673"]
[TimeControl "180+1"]
[EndTime "15:07:04 PST"]
[Termination "IlanSchnaider won by resignation"]

1. e4 {[%clk 0:03:00.9]} 1... c5 {[%clk 0:02:58.8]} 2. Nf3 {[%clk 0:03:00.8]}
2... d6 {[%clk 0:02:59.2]} 3. d4 {[%clk 0:03:00.9]} 3... cxd4 {[%clk 0:03:00.1]}
4. Nxd4 {[%clk 0:03:01.6]} 4... Nf6 {[%clk 0:03:00.4]} 5. Nc3 {[%clk 0:03:02]}
5... a6 {[%clk 0:03:00.6]} 6. f3 {[%clk 0:03:02]} 6... e5 {[%clk 0:03:00.7]} 7.
Nb3 {[%clk 0:03:02.1]} 7... Be7 {[%clk 0:03:01.4]} 8. Be3 {[%clk 0:03:02.7]}
8... Be6 {[%clk 0:03:01.8]} 9. Qd2 {[%clk 0:03:03.3]} 9... h5 {[%clk 0:03:01]}
10. O-O-O {[%clk 0:03:02.1]} 10... Nbd7 {[%clk 0:02:58.6]} 11. Nd5 {[%clk
0:03:01.7]} 11... Nxd5 {[%clk 0:02:58]} 12. exd5 {[%clk 0:03:02.6]} 12... Bf5
{[%clk 0:02:58.7]} 13. Bd3 {[%clk 0:03:03.1]} 13... Bxd3 {[%clk 0:02:59.2]} 14.
Qxd3 {[%clk 0:03:04]} 14... Bg5 {[%clk 0:02:57.8]} 15. Kb1 {[%clk 0:03:04.3]}
15... Bxe3 {[%clk 0:02:56]} 16. Qxe3 {[%clk 0:03:05.2]} 16... O-O {[%clk
0:02:51.8]} 17. h4 {[%clk 0:03:01]} 17... f5 {[%clk 0:02:38.4]} 18. f4 {[%clk
0:02:25.4]} 18... Qf6 {[%clk 0:02:10]} 19. fxe5 {[%clk 0:02:19]} 19... dxe5
{[%clk 0:02:06.5]} 20. d6 {[%clk 0:02:02.1]} 20... Rfd8 {[%clk 0:01:59.8]} 21.
Qf3 {[%clk 0:01:52.3]} 21... e4 {[%clk 0:01:46]} 22. Qxh5 {[%clk 0:01:48.6]}
22... Ne5 {[%clk 0:01:46.6]} 23. Rhf1 {[%clk 0:01:25.2]} 23... Nc4 {[%clk
0:01:40.6]} 24. c3 {[%clk 0:01:16.8]} 24... Ne3 {[%clk 0:01:36.6]} 25. Nd4
{[%clk 0:00:49.1]} 25... Rxd6 {[%clk 0:00:59.4]} 26. Qe2 {[%clk 0:00:38.7]}
26... Nxd1 {[%clk 0:00:48]} 27. Qxd1 {[%clk 0:00:33.8]} 27... Rad8 {[%clk
0:00:36.4]} 28. Qb3+ {[%clk 0:00:32.4]} 28... Kh8 {[%clk 0:00:35.2]} 29. Rxf5
{[%clk 0:00:24.3]} 29... Qxf5 {[%clk 0:00:27]} 30. Nxf5 {[%clk 0:00:24.4]} 30...
Rd1+ {[%clk 0:00:27.7]} 31. Qxd1 {[%clk 0:00:25.1]} 31... Rxd1+ {[%clk 0:00:28]}
32. Kc2 {[%clk 0:00:26]} 32... Rf1 {[%clk 0:00:24.7]} 33. g4 {[%clk 0:00:20.5]}
33... Rf2+ {[%clk 0:00:24.1]} 34. Kb3 {[%clk 0:00:20.4]} 34... g6 {[%clk
0:00:21.4]} 35. Ne7 {[%clk 0:00:20.1]} 35... e3 {[%clk 0:00:20.5]} 36. Nxg6+
{[%clk 0:00:19.9]} 36... Kg7 {[%clk 0:00:20.9]} 37. Ne5 {[%clk 0:00:20.4]} 37...
e2 {[%clk 0:00:20.1]} 38. Nd3 {[%clk 0:00:19.6]} 38... Rf3 {[%clk 0:00:20.7]}
39. Ne1 {[%clk 0:00:18.4]} 39... Rf1 {[%clk 0:00:21.4]} 40. Nd3 {[%clk
0:00:18.6]} 40... Rd1 {[%clk 0:00:21.3]} 41. Ne1 {[%clk 0:00:19.4]} 41... Rxe1
{[%clk 0:00:21.7]} 0-1

[Event "Late-Titled-Tuesday-Blitz-January-30-2024"]
[Site "Chess.com"]
[Date "2024.01.30"]
[Round "6"]
[White "Schattman"]
[Black "nindjaxx8"]
[Result "1-0"]
[WhiteElo "2466"]
[BlackElo "2584"]
[TimeControl "180+1"]
[EndTime "15:07:08 PST"]
[Termination "Schattman won by resignation"]

1. f4 {[%clk 0:03:00.9]} 1... d5 {[%clk 0:02:56.7]} 2. Nf3 {[%clk 0:03:00.5]}
2... Nf6 {[%clk 0:02:57.1]} 3. g3 {[%clk 0:03:00.8]} 3... e6 {[%clk 0:02:57.8]}
4. Bg2 {[%clk 0:03:01.2]} 4... Be7 {[%clk 0:02:58.5]} 5. O-O {[%clk 0:03:00.5]}
5... O-O {[%clk 0:02:59.1]} 6. d3 {[%clk 0:02:59.2]} 6... b6 {[%clk 0:02:55.9]}
7. Ne5 {[%clk 0:02:58.5]} 7... Bb7 {[%clk 0:02:55.2]} 8. Nc3 {[%clk 0:02:58.9]}
8... Nbd7 {[%clk 0:02:49.9]} 9. Nxd7 {[%clk 0:02:57.5]} 9... Qxd7 {[%clk
0:02:49.7]} 10. h3 {[%clk 0:02:53.6]} 10... Bc5+ {[%clk 0:02:47.8]} 11. Kh2
{[%clk 0:02:50.5]} 11... Rfd8 {[%clk 0:02:47.9]} 12. Qe1 {[%clk 0:02:37.8]}
12... Qe7 {[%clk 0:02:47.6]} 13. e4 {[%clk 0:02:35.9]} 13... dxe4 {[%clk
0:02:47]} 14. Nxe4 {[%clk 0:02:32.5]} 14... Nxe4 {[%clk 0:02:44.8]} 15. dxe4
{[%clk 0:02:26.2]} 15... Rd7 {[%clk 0:02:43.6]} 16. Be3 {[%clk 0:02:25.3]} 16...
Rad8 {[%clk 0:02:42.5]} 17. Qf2 {[%clk 0:02:04.2]} 17... Ba6 {[%clk 0:02:05]}
18. Bxc5 {[%clk 0:01:32.3]} 18... bxc5 {[%clk 0:02:05.9]} 19. Rfc1 {[%clk
0:01:21.1]} 19... Rd2 {[%clk 0:02:05.3]} 20. Qe3 {[%clk 0:01:21.2]} 20... Re2
{[%clk 0:01:57.4]} 21. Qa3 {[%clk 0:01:14.8]} 21... Rdd2 {[%clk 0:01:57.5]} 22.
Rg1 {[%clk 0:01:01.8]} 22... Bb7 {[%clk 0:01:57.5]} 23. Rae1 {[%clk 0:00:38.4]}
23... Bxe4 {[%clk 0:01:32.6]} 24. Rxe2 {[%clk 0:00:31.6]} 24... Rxe2 {[%clk
0:01:33.5]} 25. Qxa7 {[%clk 0:00:30.1]} 25... h5 {[%clk 0:01:22.5]} 26. Kh1
{[%clk 0:00:27.2]} 26... Qd6 {[%clk 0:01:06.4]} 27. Bxe4 {[%clk 0:00:20.2]}
27... Rxe4 {[%clk 0:01:03.8]} 28. Qa8+ {[%clk 0:00:19.8]} 28... Kh7 {[%clk
0:00:11.7]} 29. Qxe4+ {[%clk 0:00:19.2]} 29... f5 {[%clk 0:00:12.3]} 30. Qd3
{[%clk 0:00:17.6]} 30... Qc6+ {[%clk 0:00:12.4]} 31. Kh2 {[%clk 0:00:18]} 31...
c4 {[%clk 0:00:11.8]} 32. Qe3 {[%clk 0:00:16.9]} 32... Qd5 {[%clk 0:00:11]} 33.
Re1 {[%clk 0:00:16.4]} 33... c3 {[%clk 0:00:07.9]} 34. bxc3 {[%clk 0:00:15.9]}
34... Qxa2 {[%clk 0:00:07.3]} 35. Re2 {[%clk 0:00:16.4]} 1-0

[Event "Late-Titled-Tuesday-Blitz-January-30-2024"]
[Site "Chess.com"]
[Date "2024.01.30"]
[Round "6"]
[White "JakubPulpan"]
[Black "LiemLe"]
[Result "0-1"]
[WhiteElo "2704"]
[BlackElo "3043"]
[TimeControl "180+1"]
[EndTime "15:07:11 PST"]
[Termination "LiemLe won by resignation"]

1. Nf3 {[%clk 0:03:00.9]} 1... d5 {[%clk 0:02:59.3]} 2. b3 {[%clk 0:02:54.3]}
2... f6 {[%clk 0:02:40.6]} 3. d4 {[%clk 0:02:53.9]} 3... Nc6 {[%clk 0:02:34.9]}
4. Bb2 {[%clk 0:02:53.7]} 4... Bg4 {[%clk 0:02:34.8]} 5. Nbd2 {[%clk 0:02:44.6]}
5... e6 {[%clk 0:02:32.6]} 6. h3 {[%clk 0:02:44.3]} 6... Bh5 {[%clk 0:02:32.5]}
7. e4 {[%clk 0:02:39.3]} 7... Bd6 {[%clk 0:02:26.8]} 8. Be2 {[%clk 0:02:20.5]}
8... Nge7 {[%clk 0:02:26.4]} 9. c4 {[%clk 0:02:11.3]} 9... O-O {[%clk
0:02:08.1]} 10. O-O {[%clk 0:02:04]} 10... Bf4 {[%clk 0:02:01.5]} 11. Re1 {[%clk
0:01:52.7]} 11... Qd7 {[%clk 0:01:53.7]} 12. exd5 {[%clk 0:01:35.6]} 12... exd5
{[%clk 0:01:54.6]} 13. cxd5 {[%clk 0:01:36.5]} 13... Nxd5 {[%clk 0:01:53.7]} 14.
Ne4 {[%clk 0:01:29.5]} 14... b6 {[%clk 0:01:47.5]} 15. Nh4 {[%clk 0:01:16.4]}
15... Bxe2 {[%clk 0:01:42.3]} 16. Qxe2 {[%clk 0:01:17.3]} 16... Rfe8 {[%clk
0:01:33.8]} 17. Qc4 {[%clk 0:00:58]} 17... Na5 {[%clk 0:01:29.2]} 18. Qc2 {[%clk
0:00:44.7]} 18... Re7 {[%clk 0:01:15.3]} 19. Ng3 {[%clk 0:00:35.4]} 19... Rae8
{[%clk 0:01:06.1]} 20. Rxe7 {[%clk 0:00:35.2]} 20... Rxe7 {[%clk 0:01:02.5]} 21.
Ba3 {[%clk 0:00:28.3]} 21... Re6 {[%clk 0:01:00.9]} 22. Nf3 {[%clk 0:00:25.5]}
22... Qc6 {[%clk 0:00:51.3]} 23. Qf5 {[%clk 0:00:21.9]} 23... g6 {[%clk
0:00:51.2]} 24. Qg4 {[%clk 0:00:20.2]} 24... Kf7 {[%clk 0:00:48.2]} 25. Rf1
{[%clk 0:00:18]} 25... Re8 {[%clk 0:00:29.2]} 26. Nh2 {[%clk 0:00:09.5]} 26...
Qe6 {[%clk 0:00:27.7]} 27. Qf3 {[%clk 0:00:09.3]} 27... Nc6 {[%clk 0:00:20.7]}
28. Bb2 {[%clk 0:00:08.4]} 28... h5 {[%clk 0:00:17.8]} 29. h4 {[%clk 0:00:06.9]}
29... a5 {[%clk 0:00:16.8]} 30. Qd3 {[%clk 0:00:06.8]} 30... Ncb4 {[%clk
0:00:17.1]} 31. Qb1 {[%clk 0:00:04.6]} 31... Bxg3 {[%clk 0:00:16.4]} 32. fxg3
{[%clk 0:00:05.1]} 32... Qe3+ {[%clk 0:00:17]} 33. Kh1 {[%clk 0:00:05.7]} 33...
Qxg3 {[%clk 0:00:17.4]} 34. a3 {[%clk 0:00:05.9]} 34... Nd3 {[%clk 0:00:17.1]}
35. Qc2 {[%clk 0:00:03.6]} 35... Ne3 {[%clk 0:00:16.8]} 36. Qf2 {[%clk
0:00:01.8]} 36... Nxf2+ {[%clk 0:00:16.4]} 0-1